bitfinex-derivatives/quotes_BTCF0:USTF0_20241227
["timestamp","ask_amount","ask_price","bid_price","bid_amount"]
[1735307268813,0.1,96600.0,96595.0,0.0685]
[1735307269110,0.0015527,96667.0,96595.0,0.0685]
[1735307269312,0.051794,96647.0,96617.0,0.05181]
[1735307269509,0.051795,96645.0,96617.0,0.05181]
[1735307270015,0.051795,96645.0,96608.0,0.10320265]
[1735307270016,0.1543711,96617.0,96616.0,0.05181]
[1735307270210,0.1543711,96617.0,96616.0,0.06377462]
[1735307271010,0.1543711,96617.0,96616.0,0.18377462]
[1735307271207,0.1543711,96617.0,96616.0,0.17181]
[1735307271412,0.1543711,96617.0,96616.0,0.05181]
[1735307271818,0.1543711,96617.0,96595.0,0.0685]
[1735307272010,0.051815,96608.0,96596.0,0.01194441]
[1735307272216,0.051815,96608.0,96604.0,0.18614578]
[1735307273310,0.051815,96608.0,96604.0,0.18714578]
[1735307273505,0.051815,96608.0,96604.0,0.001]
[1735307275610,0.051815,96608.0,96604.0,0.002]
[1735307277622,0.0312,96615.0,96604.0,0.053817]
[1735307277810,0.0312,96615.0,96605.0,0.12]
[1735307278720,0.0312,96615.0,96605.0,0.171816]
[1735307278923,0.0312,96615.0,96606.0,0.051815]
[1735307279128,0.0312,96615.0,96613.0,0.051812]
[1735307279310,0.0659,96629.0,96605.0,0.12]
[1735307279620,0.0325,96642.0,96629.0,0.051803]
[1735307279924,0.033,96638.0,96634.0,0.0518]
[1735307280317,0.033,96638.0,96621.0,0.051807]
[1735307280516,0.033,96638.0,96620.0,0.10320265]
[1735307280517,0.033,96638.0,96634.0,0.051801]
[1735307281210,0.033,96638.0,96626.0,0.051804]
[1735307281615,0.033,96638.0,96629.0,0.001]
[1735307281824,0.033,96638.0,96634.0,0.001]
[1735307282417,0.033,96638.0,96635.0,0.12]
[1735307282619,0.033,96638.0,96626.0,0.001]
[1735307282817,0.033,96638.0,96626.0,0.052805]
[1735307283514,0.033,96638.0,96627.0,0.10197746]
[1735307283716,0.033,96638.0,96628.0,0.01197746]
[1735307284024,0.033,96638.0,96627.0,0.09]
[1735307284221,0.033,96638.0,96634.0,0.001]
[1735307284222,0.0518,96635.0,96634.0,0.001]
[1735307284423,0.051802,96631.0,96617.0,0.051809]
[1735307284613,0.051802,96631.0,96618.0,0.01199478]
[1735307284811,0.084799,96638.0,96628.0,0.001]
[1735307285118,0.051799,96637.0,96628.0,0.001]
[1735307285427,0.033,96638.0,96605.0,0.09]
[1735307285428,0.033,96638.0,96634.0,0.001]
[1735307286720,0.051801,96634.0,96608.0,0.051814]
[1735307287026,0.033,96638.0,96610.0,0.10320265]
[1735307287230,0.033,96638.0,96611.0,0.03129693]
[1735307287530,0.033,96638.0,96624.0,0.051806]
[1735307287827,0.033,96638.0,96628.0,0.001]
[1735307288427,0.033,96638.0,96617.0,0.05181]
[1735307288729,0.10320265,96630.0,96618.0,0.01203661]
[1735307288931,0.15500565,96630.0,96619.0,0.01203661]
[1735307289129,0.051808,96621.0,96605.0,0.09]
[1735307289323,0.051811,96616.0,96606.0,0.03126297]
[1735307289523,0.0327,96615.0,96607.0,0.01202422]
[1735307289822,0.0327,96615.0,96608.0,0.01202422]
[1735307290127,0.0327,96615.0,96609.0,0.01202422]
[1735307290323,0.0327,96615.0,96610.0,0.01202422]
[1735307290525,0.0327,96615.0,96611.0,0.01202422]
[1735307290725,0.0327,96615.0,96605.0,0.141816]
[1735307290934,0.0327,96615.0,96606.0,0.01203005]
[1735307291134,0.0327,96615.0,96607.0,0.01203005]
[1735307291326,0.0327,96615.0,96605.0,0.142816]
[1735307291327,0.0327,96615.0,96608.0,0.01203005]
[1735307291525,0.051813,96611.0,96605.0,0.091]
[1735307291718,0.051813,96611.0,96606.0,0.01203845]
[1735307291923,0.051813,96611.0,96607.0,0.01203845]
[1735307292229,0.0327,96615.0,96608.0,0.01205002]
[1735307292430,0.051814,96610.0,96609.0,0.01205002]
[1735307292633,0.051814,96610.0,96605.0,0.09]
[1735307292933,0.051814,96610.0,96606.0,0.01205283]
[1735307293120,0.051814,96610.0,96607.0,0.01205283]
[1735307293322,0.051814,96610.0,96608.0,0.01205283]
[1735307293637,0.051814,96610.0,96605.0,0.09]
[1735307293931,0.051814,96609.0,96606.0,0.01208865]
[1735307294128,0.051814,96609.0,96607.0,0.01208865]
[1735307294327,0.051814,96609.0,96608.0,0.01208865]
[1735307294634,0.051814,96609.0,96603.0,0.09]
[1735307294827,0.0327,96615.0,96604.0,0.01205187]
[1735307295134,0.051814,96610.0,96605.0,0.01205187]
[1735307295432,0.051814,96610.0,96606.0,0.01205187]
[1735307295626,0.10320265,96613.0,96603.0,0.09]
[1735307295832,0.10320265,96613.0,96591.0,0.18614578]
[1735307295833,0.40320265,96613.0,96591.0,0.18614578]
[1735307296018,0.051822,96594.0,96592.0,0.03090384]
[1735307296333,0.051824,96590.0,96589.0,0.18614578]
[1735307297418,0.051824,96590.0,96584.0,0.24769713]
[1735307297419,0.051827,96585.0,96584.0,0.24769713]
[1735307297831,0.05183,96580.0,96579.0,0.31012494]
[1735307298132,0.05183,96580.0,96560.0,0.05184]
[1735307298133,0.051826,96586.0,96560.0,0.10320265]
[1735307298329,0.1543711,96592.0,96574.0,0.051833]
[1735307298530,0.2061951,96592.0,96575.0,0.0314]
[1735307298731,0.10320265,96584.0,96561.0,0.09]
[1735307298932,0.051831,96579.0,96562.0,0.09505544]
[1735307299131,0.17552059,96579.0,96563.0,0.06365444]
[1735307299431,0.17552059,96579.0,96563.0,0.051838]
[1735307299629,0.10320265,96573.0,96562.0,0.0314]
[1735307299825,0.051834,96572.0,96562.0,0.0314]
[1735307300027,0.10320265,96573.0,96562.0,0.0314]
[1735307300331,0.10320265,96572.0,96560.0,0.002]
[1735307300636,0.10320265,96570.0,96543.0,0.1548]
[1735307300933,0.051846,96551.0,96543.0,0.1214]
[1735307301136,0.15504365,96560.0,96543.0,0.1214]
[1735307301437,0.051841,96558.0,96543.0,0.1214]
[1735307301628,0.10320265,96553.0,96543.0,0.1214]
[1735307301819,0.10320265,96553.0,96543.0,0.0334]
[1735307302237,0.22689224,96553.0,96543.0,0.0334]
[1735307302422,0.22689224,96553.0,96544.0,0.09]
[1735307303836,0.12368959,96559.0,96544.0,0.09]
[1735307304239,0.17553059,96559.0,96544.0,0.09]
[1735307304437,0.10320265,96554.0,96544.0,0.09]
[1735307304639,0.051848,96547.0,96542.0,0.00155359]
[1735307304831,0.10320265,96554.0,96542.0,0.00155359]
[1735307305436,0.051849,96544.0,96542.0,0.00155359]
[1735307306434,0.051844,96553.0,96542.0,0.00155359]
[1735307306839,0.10320265,96552.0,96542.0,0.00155359]
[1735307307039,0.051844,96553.0,96542.0,0.00155359]
[1735307308738,0.10320265,96560.0,96548.0,0.051847]
[1735307309043,0.051839,96562.0,96549.0,0.0322]
[1735307309240,0.00155405,96566.0,96551.0,0.051845]
[1735307309438,0.00155405,96566.0,96552.0,0.0321]
[1735307311340,0.00155405,96566.0,96553.0,0.09]
[1735307311539,0.10320265,96563.0,96553.0,0.09]
[1735307312038,0.051843,96555.0,96550.0,0.0308]
[1735307313437,0.051839,96563.0,96550.0,0.082645]
[1735307313742,0.051839,96563.0,96551.0,0.09]
[1735307314139,0.001,96555.0,96551.0,0.09]
[1735307314936,0.051841,96560.0,96551.0,0.091]
[1735307315245,0.051842,96557.0,96551.0,0.091]
[1735307315446,0.051844,96553.0,96551.0,0.001]
[1735307315741,0.051844,96553.0,96551.0,0.002]
[1735307316042,0.051844,96553.0,96551.0,0.001]
[1735307316340,0.051844,96553.0,96550.0,0.0308]
[1735307316546,0.051844,96553.0,96551.0,0.001]
[1735307317247,0.051849,96543.0,96542.0,0.00155359]
[1735307318744,0.3,96543.0,96521.0,0.0313]
[1735307319044,0.05186,96523.0,96521.0,0.0313]
[1735307319243,0.05186,96523.0,96516.0,0.0327]
[1735307319447,0.051861,96522.0,96516.0,0.0327]
[1735307320941,0.051861,96522.0,96516.0,0.1227]
[1735307322558,0.052861,96522.0,96516.0,0.1227]
[1735307322846,0.001,96522.0,96519.0,0.051862]
[1735307323236,0.12368959,96535.0,96516.0,0.1227]
[1735307323445,0.12368959,96535.0,96533.0,0.051855]
[1735307323647,0.12368959,96535.0,96534.0,0.0316]
[1735307324148,0.12368959,96535.0,96534.0,0.04347065]
[1735307324451,0.051844,96553.0,96542.0,0.05185]
[1735307325847,0.12368959,96551.0,96542.0,0.05185]
[1735307326450,0.12368959,96551.0,96543.0,0.0334]
[1735307327153,0.12368959,96544.0,96543.0,0.0334]
[1735307327343,0.12368959,96544.0,96543.0,0.04532423]
[1735307327743,0.12368959,96544.0,96522.0,0.051861]
[1735307327943,0.051854,96535.0,96523.0,0.01905909]
[1735307328247,0.051854,96535.0,96522.0,0.051861]
[1735307328248,0.10320265,96532.0,96524.0,0.01905909]
[1735307328450,0.10320265,96532.0,96522.0,0.051861]
[1735307328653,0.10320265,96532.0,96523.0,0.01888951]
[1735307328858,0.10320265,96532.0,96516.0,0.066]
[1735307329047,0.051863,96519.0,96516.0,0.066]
[1735307329353,0.051863,96517.0,96516.0,0.0334]
[1735307331162,0.052863,96517.0,96516.0,0.0334]
[1735307331455,0.052863,96517.0,96516.0,0.0364]
[1735307331953,0.052863,96517.0,96506.0,0.00155361]
[1735307331954,0.051869,96507.0,96506.0,0.00155361]
[1735307332944,0.051871,96503.0,96491.0,0.0312]
[1735307333143,0.051871,96503.0,96492.0,0.09]
[1735307333344,0.051872,96502.0,96491.0,0.0312]
[1735307334053,0.051872,96502.0,96500.0,0.102]
[1735307334746,0.051872,96502.0,96500.0,0.106]
[1735307335347,0.05187,96504.0,96500.0,0.106]
[1735307336755,0.1236322,96508.0,96505.0,0.05187]
[1735307336945,0.1236322,96511.0,96500.0,0.106]
[1735307337143,0.1236322,96511.0,96510.0,0.051867]
[1735307337348,0.1543711,96517.0,96516.0,0.051864]
[1735307338354,0.051858,96528.0,96516.0,0.051864]
[1735307338759,0.051858,96528.0,96510.0,0.01021399]
[1735307338760,0.05186,96524.0,96510.0,0.01021399]
[1735307338963,0.15484766,96530.0,96508.0,0.051868]
[1735307339172,0.15484766,96530.0,96505.0,0.001]
[1735307339358,0.051865,96514.0,96505.0,0.001]
[1735307339560,0.051865,96514.0,96500.0,0.151872]
[1735307339760,0.051865,96514.0,96501.0,0.0215336]
[1735307339961,0.051865,96514.0,96510.0,0.004]
[1735307340260,0.051865,96514.0,96511.0,0.01156826]
[1735307340466,0.051865,96514.0,96510.0,0.004]
[1735307341155,0.0656,96533.0,96510.0,0.004]
[1735307341354,0.0656,96533.0,96511.0,0.01157838]
[1735307341355,0.051861,96522.0,96511.0,0.01157838]
[1735307341568,0.051862,96520.0,96512.0,0.01157838]
[1735307341765,0.051863,96519.0,96505.0,0.003]
[1735307341974,0.051863,96519.0,96508.0,0.051868]
[1735307342167,0.051863,96519.0,96509.0,0.10159504]
[1735307342468,0.051859,96526.0,96510.0,0.01159504]
[1735307342671,0.051861,96522.0,96511.0,0.01159504]
[1735307342875,0.051862,96520.0,96512.0,0.01159504]
[1735307343077,0.051863,96518.0,96502.0,0.051871]
[1735307343274,0.051863,96518.0,96501.0,0.1235]
[1735307343275,0.051863,96518.0,96503.0,0.01159563]
[1735307343466,0.051863,96518.0,96501.0,0.1235]
[1735307343467,0.051863,96518.0,96504.0,0.06346563]
[1735307343667,0.051858,96527.0,96510.0,0.051867]
[1735307343869,0.051858,96527.0,96515.0,0.051864]
[1735307344075,0.1543711,96532.0,96521.0,0.051861]
[1735307344378,0.1543711,96530.0,96522.0,0.0341]
[1735307345479,0.15592565,96537.0,96523.0,0.01163388]
[1735307345776,0.15592565,96537.0,96530.0,0.051856]
[1735307345966,0.15592565,96537.0,96531.0,0.01162998]
[1735307346171,0.15592565,96537.0,96530.0,0.051856]
[1735307346375,0.15592565,96537.0,96531.0,0.01163258]
[1735307346572,0.15592565,96537.0,96530.0,0.051856]
[1735307346573,0.00155455,96537.0,96530.0,0.051856]
[1735307346778,0.00155455,96537.0,96530.0,0.053856]
[1735307347584,0.00155455,96537.0,96530.0,0.052856]
[1735307347884,0.00155455,96537.0,96531.0,0.01163728]
[1735307348070,0.00155455,96537.0,96531.0,0.051856]
[1735307348267,0.00155455,96537.0,96535.0,0.051853]
[1735307348469,0.00155455,96537.0,96536.0,0.01163776]
[1735307348679,0.1023711,96538.0,96537.0,0.051853]
[1735307348882,0.1023711,96538.0,96537.0,0.06349076]
[1735307349069,0.18556769,96547.0,96537.0,0.01163776]
[1735307349273,0.18556769,96547.0,96546.0,0.051848]
[1735307349476,0.051842,96558.0,96546.0,0.06348576]
[1735307349668,0.051842,96558.0,96547.0,0.01163776]
[1735307349868,0.051842,96558.0,96548.0,0.01163776]
[1735307350182,0.051842,96558.0,96546.0,0.051848]
[1735307350483,0.0338,96569.0,96547.0,0.01160252]
[1735307350484,0.051842,96557.0,96547.0,0.01160252]
[1735307350678,0.051842,96557.0,96546.0,0.051848]
[1735307350980,0.051842,96557.0,96548.0,0.09]
[1735307351476,0.051842,96557.0,96549.0,0.01160199]
[1735307351779,0.051842,96557.0,96548.0,0.09]
[1735307351981,0.051842,96557.0,96546.0,0.051848]
[1735307352183,0.051842,96557.0,96547.0,0.01159541]
[1735307352384,0.0338,96569.0,96546.0,0.051848]
[1735307352786,0.051843,96555.0,96546.0,0.051848]
[1735307353082,0.051845,96551.0,96537.0,0.051852]
[1735307353477,0.0338,96569.0,96537.0,0.051852]
[1735307353783,0.051845,96552.0,96539.0,0.051851]
[1735307354285,0.051845,96552.0,96537.0,0.001]
[1735307354486,0.051845,96552.0,96542.0,0.05185]
[1735307354683,0.051845,96551.0,96542.0,0.05185]
[1735307354884,0.15484766,96560.0,96537.0,0.001]
[1735307355089,0.23748136,96567.0,96537.0,0.001]
[1735307355090,0.051852,96538.0,96537.0,0.001]
[1735307355574,0.051852,96538.0,96537.0,0.004]
[1735307355981,0.0326,96548.0,96511.0,0.051866]
[1735307356174,0.05186,96523.0,96511.0,0.051866]
[1735307356374,0.0344,96522.0,96511.0,0.051866]
[1735307357584,0.0344,96522.0,96511.0,0.052866]
[1735307357889,0.051857,96530.0,96519.0,0.051862]
[1735307358285,0.0344,96535.0,96520.0,0.15484766]
[1735307358501,0.22004436,96535.0,96520.0,0.15484766]
[1735307358685,0.22004436,96535.0,96523.0,0.05186]
[1735307359182,0.001,96530.0,96529.0,0.051857]
[1735307359886,0.001,96535.0,96530.0,0.051856]
[1735307360190,0.001,96535.0,96520.0,0.1137934]
[1735307360392,0.001,96535.0,96532.0,0.051855]
[1735307360584,0.18564436,96542.0,96532.0,0.051855]
[1735307360979,0.18564436,96542.0,96533.0,0.09]
[1735307361186,0.003,96535.0,96533.0,0.09]
[1735307361780,0.0326,96548.0,96533.0,0.09]
[1735307362484,0.0326,96548.0,96533.0,0.091]
[1735307362894,0.05185,96542.0,96533.0,0.091]
[1735307363286,0.05185,96542.0,96533.0,0.092]
[1735307363989,0.051851,96540.0,96533.0,0.002]
[1735307364187,0.051847,96547.0,96533.0,0.002]
[1735307364697,0.051847,96547.0,96534.0,0.051854]
[1735307364893,0.0326,96548.0,96534.0,0.051854]
[1735307365085,0.051848,96546.0,96534.0,0.051854]
[1735307366492,0.0326,96548.0,96526.0,0.051858]
[1735307366691,0.05185,96543.0,96528.0,0.051857]
[1735307368197,0.05185,96543.0,96521.0,0.10051367]
[1735307368490,0.05185,96543.0,96529.0,0.051857]
[1735307369394,0.05185,96543.0,96532.0,0.051855]
[1735307371892,0.05185,96542.0,96532.0,0.051855]
[1735307372801,0.051851,96540.0,96530.0,0.01022165]
[1735307373103,0.051851,96540.0,96525.0,0.051859]
[1735307373297,0.051851,96540.0,96521.0,0.09]
[1735307373298,0.051848,96547.0,96533.0,0.051855]
[1735307373593,0.18616437,96550.0,96521.0,0.09]
[1735307373594,0.18564436,96550.0,96537.0,0.10318829]
[1735307373796,0.18564436,96550.0,96548.0,0.051847]
[1735307373995,0.18564436,96550.0,96549.0,0.09]
[1735307374191,0.21658509,96564.0,96563.0,0.051839]
[1735307374890,0.00052001,96571.0,96563.0,0.09]
[1735307375085,0.10318829,96580.0,96564.0,0.07425803]
[1735307375289,0.10318829,96580.0,96564.0,0.0623]
[1735307375487,0.051834,96572.0,96565.0,0.01195265]
[1735307375700,0.051834,96572.0,96566.0,0.01195265]
[1735307375996,0.08323,96579.0,96567.0,0.01208098]
[1735307376195,0.051827,96586.0,96576.0,0.051831]
[1735307376396,0.051827,96586.0,96578.0,0.05183]
[1735307376799,0.051827,96586.0,96579.0,0.05183]
[1735307377296,0.2227051,96607.0,96576.0,0.10318829]
[1735307377496,0.051819,96600.0,96576.0,0.10318829]
[1735307377997,0.057415,96607.0,96590.0,0.10318829]
[1735307378201,0.0056,96607.0,96580.0,0.10318829]
[1735307378497,0.051818,96602.0,96580.0,0.10318829]
[1735307378696,0.003,96597.0,96581.0,0.051829]
[1735307378898,0.003,96597.0,96590.0,0.051824]
[1735307379087,0.003,96597.0,96587.0,0.10318829]
[1735307379294,0.003,96597.0,96595.0,0.051821]
[1735307379805,0.0056,96607.0,96606.0,0.051816]
[1735307380404,0.0056,96607.0,96606.0,0.141816]
[1735307382002,0.0056,96607.0,96606.0,0.051816]
[1735307384206,0.0056,96607.0,96606.0,0.141816]
[1735307384791,0.0056,96607.0,96606.0,0.051816]
[1735307385800,0.0056,96607.0,96597.0,0.05182]
[1735307385997,0.0056,96607.0,96589.0,0.051825]
[1735307385998,0.051818,96602.0,96589.0,0.051825]
[1735307386197,0.10318829,96600.0,96589.0,0.051825]
[1735307386400,0.0056,96607.0,96589.0,0.051825]
[1735307386607,0.051822,96596.0,96589.0,0.051825]
[1735307387108,0.051822,96596.0,96589.0,0.052825]
[1735307387308,0.0317,96606.0,96589.0,0.001]
[1735307387609,0.051817,96604.0,96594.0,0.051822]
[1735307387796,0.051819,96600.0,96589.0,0.001]
[1735307388203,0.10318829,96600.0,96589.0,0.001]
[1735307388409,0.051824,96590.0,96578.0,0.051831]
[1735307388711,0.15501229,96590.0,96589.0,0.001]
[1735307388898,0.051824,96590.0,96589.0,0.001]
[1735307389203,0.051824,96590.0,96589.0,0.002]
[1735307391006,0.051824,96590.0,96589.0,0.001]
[1735307391301,0.001,96590.0,96581.0,0.051829]
[1735307391520,0.001,96590.0,96580.0,0.10318829]
[1735307391711,0.001,96590.0,96589.0,0.051825]
[1735307391914,0.09213942,96611.0,96589.0,0.09]
[1735307392110,0.09213942,96611.0,96602.0,0.051818]
[1735307392301,0.09213942,96611.0,96605.0,0.051816]
[1735307393008,0.09213942,96628.0,96605.0,0.051816]
[1735307393813,0.14394342,96628.0,96605.0,0.051816]
[1735307394003,0.051804,96628.0,96605.0,0.051816]
[1735307394197,0.10318829,96630.0,96605.0,0.051816]
[1735307394403,0.0066,96607.0,96605.0,0.051816]
[1735307395714,0.0066,96607.0,96606.0,0.012]
[1735307396011,0.0066,96607.0,96605.0,0.051816]
[1735307396405,0.0066,96607.0,96606.0,0.09]
[1735307396611,0.0066,96607.0,96606.0,0.10200037]
[1735307396814,0.0066,96607.0,96606.0,0.09]
[1735307397311,0.0066,96607.0,96606.0,0.10200113]
[1735307397817,0.0056,96607.0,96606.0,0.10200113]
[1735307398012,0.0066,96607.0,96606.0,0.10200113]
[1735307398405,0.0066,96607.0,96606.0,0.01200522]
[1735307400205,0.0066,96607.0,96605.0,0.051816]
[1735307400608,0.0066,96607.0,96606.0,0.01202178]
[1735307401212,0.0066,96607.0,96606.0,0.10202178]
[1735307402414,0.0066,96607.0,96606.0,0.1213275]
[1735307403319,0.0066,96607.0,96606.0,0.10202178]
[1735307403515,0.0066,96607.0,96606.0,0.10204381]
[1735307403711,0.0066,96607.0,96606.0,0.12133987]
[1735307407614,0.0066,96607.0,96606.0,0.13130806]
[1735307409518,0.0066,96607.0,96606.0,0.13147672]
[1735307410318,0.0066,96607.0,96606.0,0.03150815]
[1735307410528,0.051817,96604.0,96603.0,0.1977997]
[1735307410831,0.0066,96607.0,96598.0,0.30999657]
[1735307410832,0.051819,96599.0,96598.0,0.30999657]
[1735307411029,0.051819,96599.0,96591.0,0.37255588]
[1735307411329,0.051827,96585.0,96572.0,0.141834]
[1735307412132,0.17487702,96592.0,96572.0,0.09]
[1735307412525,0.17487702,96592.0,96572.0,0.099]
[1735307412720,0.051824,96591.0,96576.0,0.051831]
[1735307412931,0.10318829,96590.0,96576.0,0.051831]
[1735307413231,0.1543321,96580.0,96576.0,0.051831]
[1735307413425,0.1543321,96580.0,96572.0,0.103]
[1735307413622,0.1543321,96580.0,96578.0,0.05183]
[1735307413926,0.1543321,96580.0,96572.0,0.099]
[1735307414129,0.1543321,96580.0,96572.0,0.092]
[1735307414531,0.15501729,96582.0,96572.0,0.092]
[1735307414832,0.001,96580.0,96572.0,0.09]
[1735307415418,0.001,96580.0,96572.0,0.099]
[1735307415921,0.17550004,96574.0,96560.0,0.05184]
[1735307416121,0.10318829,96570.0,96560.0,0.05184]
[1735307416328,0.17550004,96574.0,96561.0,0.141839]
[1735307417825,0.09268131,96565.0,96561.0,0.143839]
[1735307418134,0.09268131,96565.0,96561.0,0.144839]
[1735307418933,0.09268131,96566.0,96561.0,0.144839]
[1735307420123,0.09268131,96565.0,96561.0,0.143839]
[1735307420324,0.09268131,96565.0,96561.0,0.144839]
[1735307420936,0.09268131,96565.0,96561.0,0.143839]
[1735307421132,0.09268131,96565.0,96561.0,0.142839]
[1735307421334,0.09268131,96565.0,96561.0,0.143839]
[1735307421541,0.09268131,96568.0,96561.0,0.143839]
[1735307422434,0.09268131,96568.0,96562.0,0.051839]
[1735307422832,0.09268131,96568.0,96566.0,0.051837]
[1735307424323,0.09268131,96568.0,96566.0,0.002]
[1735307424829,0.09368131,96568.0,96566.0,0.002]
[1735307425236,0.09368131,96568.0,96566.0,0.053837]
[1735307425424,0.09268131,96568.0,96566.0,0.053837]
[1735307425627,0.09268131,96568.0,96566.0,0.055837]
[1735307426331,0.12366704,96573.0,96566.0,0.004]
[1735307426532,0.12366704,96573.0,96572.0,0.051834]
[1735307427231,0.12366704,96573.0,96572.0,0.141834]
[1735307428629,0.12366704,96573.0,96572.0,0.143834]
[1735307429135,0.12366704,96573.0,96572.0,0.141834]
[1735307429436,0.12366704,96573.0,96572.0,0.15518623]
[1735307429944,0.12366704,96573.0,96572.0,0.15618623]
[1735307431030,0.12366704,96573.0,96572.0,0.15518623]
[1735307431230,0.12366704,96573.0,96572.0,0.15618623]
[1735307432336,0.18445402,96586.0,96572.0,0.10335223]
[1735307432538,0.13455402,96586.0,96585.0,0.051827]
[1735307432738,0.24816582,96603.0,96595.0,0.051822]
[1735307432937,0.24816582,96603.0,96602.0,0.051818]
[1735307433246,0.24752582,96603.0,96602.0,0.051818]
[1735307434047,0.24752582,96603.0,96602.0,0.06205387]
[1735307434247,0.00064,96616.0,96606.0,0.051816]
[1735307434546,0.051807,96622.0,96606.0,0.051816]
[1735307435042,0.051807,96622.0,96606.0,0.141816]
[1735307435645,0.051809,96620.0,96606.0,0.141816]
[1735307436559,0.05181,96617.0,96606.0,0.141816]
[1735307436840,0.0126,96607.0,96606.0,0.142816]
[1735307438144,0.0136,96607.0,96606.0,0.142816]
[1735307439639,0.0136,96607.0,96606.0,0.15324539]
[1735307440356,0.0136,96607.0,96606.0,0.142816]
[1735307441548,0.0136,96607.0,96606.0,0.052816]
[1735307442944,0.0136,96607.0,96606.0,0.001]
[1735307443148,0.0136,96607.0,96580.0,0.15501829]
[1735307443149,0.051816,96606.0,96592.0,0.051823]
[1735307443346,0.10318829,96602.0,96585.0,0.051827]
[1735307443649,0.051824,96592.0,96585.0,0.051827]
[1735307444151,0.051819,96601.0,96591.0,0.051824]
[1735307444950,0.15500729,96601.0,96591.0,0.051824]
[1735307445337,0.051819,96601.0,96591.0,0.051824]
[1735307446846,0.0329,96600.0,96591.0,0.051824]
[1735307447153,0.0329,96600.0,96591.0,0.052824]
[1735307448153,0.0329,96600.0,96592.0,0.051823]
[1735307448538,0.0399,96600.0,96592.0,0.051823]
[1735307449450,0.091719,96600.0,96591.0,0.001]
[1735307449946,0.0399,96600.0,96591.0,0.001]
[1735307450147,0.051821,96597.0,96591.0,0.001]
[1735307450756,0.051821,96597.0,96592.0,0.001]
[1735307451343,0.058821,96597.0,96591.0,0.001]
[1735307451954,0.058821,96597.0,96592.0,0.001]
[1735307452655,0.058821,96597.0,96591.0,0.001]
[1735307452656,0.059821,96597.0,96591.0,0.001]
[1735307453048,0.008,96597.0,96591.0,0.001]
[1735307453249,0.051821,96596.0,96591.0,0.001]
[1735307453652,0.051823,96593.0,96591.0,0.001]
[1735307454251,0.008,96597.0,96582.0,0.09155292]
[1735307454448,0.051825,96590.0,96561.0,0.051839]
[1735307454651,0.051832,96575.0,96563.0,0.23745849]
[1735307454853,0.0327,96574.0,96565.0,0.051838]
[1735307455865,0.0327,96574.0,96559.0,0.051841]
[1735307455866,0.051834,96572.0,96559.0,0.051841]
[1735307456156,0.051835,96570.0,96559.0,0.051841]
[1735307456359,0.051835,96570.0,96565.0,0.002]
[1735307456958,0.051835,96570.0,96559.0,0.051841]
[1735307457158,0.051835,96570.0,96559.0,0.054841]
[1735307457554,0.051836,96568.0,96559.0,0.054841]
[1735307457757,0.051836,96568.0,96565.0,0.004]
[1735307457961,0.051837,96566.0,96565.0,0.004]
[1735307458265,0.051837,96566.0,96559.0,0.01]
[1735307458765,0.001,96570.0,96565.0,0.002]
[1735307459268,0.001,96570.0,96561.0,0.05184]
[1735307459465,0.051837,96567.0,96559.0,0.003]
[1735307459661,0.051837,96567.0,96565.0,0.004]
[1735307460359,0.051837,96567.0,96565.0,0.006]
[1735307461152,0.051837,96567.0,96565.0,0.002]
[1735307461358,0.051837,96567.0,96565.0,0.006]
[1735307461762,0.0326,96570.0,96565.0,0.002]
[1735307461969,0.008,96567.0,96565.0,0.003]
[1735307462560,0.009,96567.0,96565.0,0.001]
[1735307462952,0.051837,96566.0,96565.0,0.001]
[1735307464156,0.051837,96566.0,96552.0,0.141844]
[1735307464759,0.057837,96566.0,96565.0,0.001]
[1735307464970,0.058837,96566.0,96565.0,0.001]
[1735307465359,0.051841,96559.0,96552.0,0.09]
[1735307466467,0.007,96566.0,96552.0,0.09]
[1735307466468,0.006,96566.0,96552.0,0.09]
[1735307466659,0.051842,96557.0,96552.0,0.09]
[1735307468467,0.052842,96557.0,96552.0,0.09]
[1735307469860,0.051843,96555.0,96552.0,0.09]
[1735307470068,0.001,96557.0,96553.0,0.051844]
[1735307470271,0.15458628,96570.0,96569.0,0.051836]
[1735307470964,0.15458628,96570.0,96569.0,0.141836]
[1735307471361,0.16258628,96570.0,96569.0,0.142836]
[1735307471563,0.008,96570.0,96569.0,0.091]
[1735307472071,0.051845,96551.0,96550.0,0.01037747]
[1735307472666,0.051849,96544.0,96543.0,0.0015535]
[1735307474366,0.051849,96544.0,96533.0,0.051855]
[1735307474763,0.051849,96544.0,96534.0,0.09]
[1735307474968,0.051849,96544.0,96543.0,0.002]
[1735307475168,0.051849,96544.0,96543.0,0.005]
[1735307475667,0.051849,96544.0,96534.0,0.09]
[1735307475868,0.01054002,96550.0,96534.0,0.09]
[1735307476072,0.05185,96542.0,96534.0,0.09]
[1735307476271,0.10318829,96553.0,96534.0,0.09]
[1735307476472,0.051854,96536.0,96534.0,0.09]
[1735307476669,0.051854,96534.0,96533.0,0.005]
[1735307477573,0.051854,96534.0,96533.0,0.002]
[1735307477772,0.051858,96528.0,96520.0,0.18562049]
[1735307477973,0.10318829,96530.0,96520.0,0.18562049]
[1735307478677,0.10318829,96530.0,96512.0,0.051866]
[1735307478871,0.05186,96524.0,96512.0,0.051866]
[1735307479269,0.05186,96524.0,96504.0,0.0105437]
[1735307479270,0.15458628,96536.0,96510.0,0.10318829]
[1735307479464,0.051856,96532.0,96522.0,0.05186]
[1735307479667,0.051856,96532.0,96523.0,0.0323]
[1735307480180,0.051856,96532.0,96524.0,0.0633]
[1735307480371,0.15458628,96538.0,96524.0,0.0633]